Cogmind - Beta 16 @@@ ROGUE MODE // 2025.11.10 @ 12:53:58 Player: welikiq Result: Self-destructed Performance ------------- Evolutions (1) 500 Regions Visited (3) 600 Robots Destroyed (54) 270 Value Destroyed (1083) 1083 Prototype IDs (4) 80 Alien Tech Used (0) 0 Bonus (0) 0 TOTAL SCORE: 2533 Bonus ------- None Cogmind --------- Core Integrity 322/400 Matter 290/300 Energy 80/100 System Corruption 9% Temperature Warm (111) Movement Treading (170) Location -9/Mines Parts ------- > --- POWER (1) -------- (None) > --- PROPULSION (3) --- Armored Treads Armored Treads Armored Treads > --- UTILITY (3) ------ Large Storage Unit Signal Interpreter > --- WEAPON (2) ------- Particle Cannon Datajack > --- INVENTORY (15) --- Ion Engine Light Treads Light Treads Light Treads Light Treads Armored Treads Huge Storage Unit Large Matter Pod (150) EM Pulse Gun Particle Cannon Particle Cannon Light Assault Rifle Grenade Launcher Scythe Peak State ------------ > --- POWER ------------ Ion Engine > --- PROPULSION ------- Armored Treads Armored Treads Armored Treads > --- UTILITY ---------- Heat Sink Large Storage Unit Signal Interpreter > --- WEAPON ----------- Particle Cannon Particle Cannon > --- INVENTORY -------- Ion Engine Ion Engine Light Treads Light Treads Light Treads Armored Treads Huge Storage Unit Large Matter Pod EM Pulse Gun Particle Cannon Particle Cannon Light Assault Rifle Grenade Launcher Datajack Scythe [Rating: 19] Favorites ----------- Power Ion Engine Engine Ion Engine Propulsion Light Treads Treads Light Treads Utility Signal Interpreter Device Heat Sink Storage Huge Storage Unit Processor Signal Interpreter Weapon Particle Cannon Energy Cannon Particle Cannon Ballistic Gun Light Assault Rifle Ballistic Cannon Light Cannon Special Melee Weapon Datajack Build | -11 -10 -9 -9 ------- Run | Yrd Mat Mat Min Slots Evolved 2 | . . 2 . Power . | . . . . Propulsion 1 | . . 1 . Utility 1 | . . 1 . Weapon . | . . . . Parts Attached 25 | 6 6 12 1 Power 2 | 1 1 . . Engine 2 | 1 1 . . Core . | . . . . Reactor . | . . . . Propulsion 12 | 2 . 10 . Treads 12 | 2 . 10 . Leg . | . . . . Wheel . | . . . . Hover . | . . . . Flight . | . . . . Utility 5 | 1 2 2 . Device 1 | . . 1 . Storage 3 | 1 1 1 . Processor 1 | . 1 . . Hackware . | . . . . Protection . | . . . . Artifact . | . . . . Weapon 6 | 2 3 . 1 Energy Gun . | . . . . Energy Cannon 2 | . 2 . . Ballistic Gun 2 | 2 . . . Ballistic Cannon 1 | . 1 . . Launcher . | . . . . Special Weapon . | . . . . Impact Weapon . | . . . . Slashing Weapon . | . . . . Piercing Weapon . | . . . . Special Melee Weapon 1 | . . . 1 Unidentified Prototypes . | . . . . Parts Lost 4 | . 1 . 3 Power 1 | . . . 1 Propulsion . | . . . . Utility 1 | . . . 1 Weapon 2 | . 1 . 1 Highest Loss Streak 2 | . 1 . 2 To Critical Strikes 1 | . 1 . . Average Backups 10 | 1 9 13 15 Power 1 | . 1 1 1 Propulsion 1 | . . 2 5 Utility 1 | . 1 1 2 Weapon 5 | . 5 5 6 Tool/Special . | . . . . Unused Backups 11 | . 2 1 8 Power 1 | . . . 1 Propulsion 1 | . . . 1 Utility 3 | . 2 . 1 Weapon 6 | . . 1 5 Tool/Special . | . . . . Average Slot Usage (%) 97 | . 98 94 95 Engine 12 | . 14 11 10 Treads 29 | . 28 30 33 Device 2 | . . 8 7 Storage 16 | . 19 11 11 Processor 8 | . 6 11 11 Energy Cannon 16 | . 13 22 21 Ballistic Gun 2 | . 4 . . Ballistic Cannon 6 | . 10 . . Peak Build Rating 19 | 6 10 19 19 Average Rating 10 | 5 8 12 18 On Entrance 8 | . 6 10 19 Avg Prop Armor Cover (%) . | . . . . Naked Turns . | . . . . Heaviest Build 97 | 12 97 93 34 Greatest Support 60 | 40 40 60 60 Greatest Overweight (x) 2 | . 2 2 . Average Overweight (x) . | . 1 . . Largest Inventory Capacity 25 | 8 25 25 15 Average Capacity 19 | 7 23 15 15 Most Carried 15 | 2 11 15 15 Average Carried 10 | 1 9 13 14 Final Capacity 25 | 8 25 15 15 Final Carried 15 | 2 10 15 14 Class Distribution -------------------- 86% | Mutant 13% | Scavenger-Mutant Dominant Class ---------------- Mutant | -10/Materials Scavenger-Mutant | -9/Materials Mutant | -9/Mines Resources | -11 -10 -9 -9 ----------- Run | Yrd Mat Mat Min Matter Collected 831 | 294 404 93 40 Remotely . | . . . . Salvage Created 1590 | 142 627 748 73 Parts 119 | 11 59 42 7 Haulers Intercepted 2 | . 1 1 . Recyclers Shooed 3 | 2 . . 1 Parts Field Recycled . | . . . . Retrieved Matter . | . . . . Parts Self-Destructed . | . . . . Prevented . | . . . . Parts Restored . | . . . . Kills | -11 -10 -9 -9 ------- Run | Yrd Mat Mat Min Combat Hostiles Destroyed 37 | . 17 15 5 Cannons 36 | . 17 14 5 Classes Destroyed 12 | 3 5 3 1 Worker 4 | 1 3 . . Builder 2 | . 2 . . Tunneler 3 | 3 . . . Hauler 2 | . 1 1 . Recycler 2 | 1 . 1 . Operator 1 | . . 1 . Watcher 4 | . 3 1 . Swarmer 16 | . 9 3 4 Grunt 15 | . 8 7 . Brawler 1 | . . 1 . Sentry 4 | . . 4 . Assembled 1 | . . . 1 Best Kill Streak 5 | 2 5 4 3 Combat Bots Only 5 | . 5 4 3 Max Kills in Single Turn 1 | 1 1 1 1 Gunslinging . | . . . . Exploded . | . . . . Melee . | . . . . Uniques/NPCs Destroyed . | . . . . Combat | -11 -10 -9 -9 -------- Run | Yrd Mat Mat Min Hostile Shots Fired 119 | . 63 38 18 Missed 29 | . 16 9 4 Hits 90 | . 47 29 14 Melee 4 | . . 1 3 Projectile 86 | . 47 28 11 Critical Strikes 1 | . 1 . . Damage Taken 963 | . 416 369 178 Core 104 | . 26 69 9 Absorbed by Shields . | . . . . Core Remaining (%) 94 | 100 89 . . Volleys Fired 115 | 17 45 40 13 Largest 2 | 2 2 2 2 Hottest 136 | 40 136 136 136 Shots Fired 223 | 34 85 79 25 Gun 34 | 34 . . . Cannon 189 | . 85 79 25 Launcher . | . . . . Special . | . . . . Kinetic 72 | 34 38 . . Thermal 151 | . 47 79 25 Explosive . | . . . . Electromagnetic . | . . . . Robot Hit Streak 13 | 4 12 13 3 Robot Miss Streak 8 | 3 5 8 2 Penetration Max . | . . . . Secondary Targets . | . . . . Shots Hit Robots 121 | 21 49 41 10 Core Hits 60 | 8 26 20 6 Critical Kills 1 | . . 1 . Critical Parts Destroyed . | . . . . Critical Strikes 1 | . . 1 . Meltdown 1 | . . 1 . Melee Attacks . | . . . . Impact . | . . . . Slashing . | . . . . Piercing . | . . . . Sneak Attacks . | . . . . Combat Hostiles . | . . . . Follow-up Attacks . | . . . . Damage Inflicted 2381 | 166 1043 946 226 Guns 166 | 166 . . . Cannons 2156 | . 1007 927 222 Explosions . | . . . . Melee . | . . . . Ramming 59 | . 36 19 4 Kinetic 453 | 166 287 . . Thermal 1869 | . 720 927 222 Explosive . | . . . . Electromagnetic . | . . . . Impact . | . . . . Slashing . | . . . . Piercing . | . . . . Highest Corruption 9 | . . 2 9 Average Corruption 1 | . . 1 2 Corruption Purged . | . . . . Corruption Blocked . | . . . . Effects 5 | . . 4 1 Matter Fused 1 | . . 1 . Heat Flow Errors 1 | . . 1 . Parts Rejected 1 | . . 1 . Data Loss (major) 1 | . . . 1 Weapon Failures 1 | . . 1 . Overload Shots . | . . . . Overflow Damage 21 | . 11 4 6 Projectiles 21 | . 11 4 6 Explosions . | . . . . Melee . | . . . . Knockbacks 2 | . 2 . . Impact . | . . . . Kinetic 2 | . 2 . . Secondary . | . . . . Self-Inflicted Damage . | . . . . Shots . | . . . . Rammed 12 | . 7 4 1 Targets Rammed 13 | 1 7 4 1 Kicked . | . . . . Crushed 1 | 1 . . . Highest Temperature 271 | . 271 258 216 Average Temperature 82 | . 74 88 95 Received Heat Transfer 186 | . 78 108 . Effects 1 | . . . 1 Energy Bleed 1 | . . . 1 Siege Activations . | . . . . Martial Activations . | . . . . Shielding Activations . | . . . . Robots Disrupted . | . . . . Combat Hostiles . | . . . . Robots Corrupted . | . . . . Combat Hostiles . | . . . . Parts Fried . | . . . . Impact Corruptions . | . . . . Robots Melted 1 | . . 1 . Combat Hostiles 1 | . . 1 . Parts Melted 4 | . 1 2 1 Heat Transferred 3182 | . 1221 1591 370 Parts Sabotaged . | . . . . Parts Stolen . | . . . . Parts Stripped . | . . . . Power Chain Reactions . | . . . . Alert | -11 -10 -9 -9 ------- Run | Yrd Mat Mat Min Maximum Alert Level 1 | . . 1 1 Low Security (%) 83 | 100 100 41 73 Level 1 16 | . . 58 26 Level 2 . | . . . . Level 3 . | . . . . Level 4 . | . . . . Level 5 . | . . . . High Security . | . . . . Max Security . | . . . . Peak Influence 292 | 5 178 292 250 Initial 78 | . 3 68 78 Average 80 | . 41 186 111 Influence Increases 1245 | 25 495 453 272 Destroy 0b10 Robot/C 720 | . 340 300 80 Destroy 0b10 Robot/NC 90 | 25 45 20 . Destroy Leader 182 | . 78 94 10 Successful Hack 37 | . 14 23 . Disable Machine 60 | . . . 60 Destroy Structure 36 | . 3 1 32 Lose Combat Pursuer 120 | . 15 15 90 Influence Decreases 1055 | 20 337 413 285 Entered New Map 222 | . 2 95 125 Time Decay 793 | 20 325 318 130 Lost Part 40 | . 10 . 30 Squads Dispatched 5 | . 3 2 . Investigation 3 | . 2 1 . Extermination . | . . . . Reinforcement 2 | . 1 1 . Assault . | . . . . Garrison . | . . . . Intercept . | . . . . Searches Triggered . | . . . . Construction Impeded . | . . . . Haulers Reinforced . | . . . . Active Scanning Responses . | . . . . Cargo Convoy Interrupts . | . . . . Stealth | -11 -10 -9 -9 --------- Run | Yrd Mat Mat Min Distress Signals 4 | . 1 3 . Communications Jammed . | . . . . Distress Signals . | . . . . Times Spotted 57 | . 23 21 13 Peak Tracking Total 7 | . 4 5 7 Tactical Retreats 4 | . 1 1 2 Traps | -11 -10 -9 -9 ------- Run | Yrd Mat Mat Min Traps Triggered 4 | . 2 2 . Indirectly . | . . . . Trap Hack Attempts . | . . . . Triggered . | . . . . Disarmed . | . . . . Reprogrammed . | . . . . Reused . | . . . . Traps Extracted . | . . . . Installed . | . . . . Triggered . | . . . . Machines | -11 -10 -9 -9 ---------- Run | Yrd Mat Mat Min Machines Disabled 5 | . 1 . 4 Max in Single Turn 4 | . 1 . 4 Machines Repaired . | . . . . Machines Dismantled . | . . . . Machines Sabotaged . | . . . . Overloaded Fab Kills . | . . . . Hacking | -11 -10 -9 -9 --------- Run | Yrd Mat Mat Min Machines Accessed 6 | . 2 4 . Terminals 6 | . 2 4 . Fabricators . | . . . . Repair Stations . | . . . . Recycling Units . | . . . . Scanalyzers . | . . . . Garrison Access . | . . . . Total Hacks 20 | . 8 12 . Successful 9 | . 5 4 . Failed 11 | . 3 8 . Catastrophic 4 | . 1 3 . Database Lockouts . | . . . . Manual 15 | . 7 8 . Terminals 20 | . 8 12 . Fabricators . | . . . . Repair Stations . | . . . . Recycling Units . | . . . . Scanalyzers . | . . . . Garrison Access . | . . . . Terminal Hacks 9 | . 5 4 . Robot Analysis 4 | . 3 1 . Prototype ID Bank 2 | . 1 1 . Branch Access Points 2 | . 1 1 . Locate Traps 1 | . . 1 . Fabricator Hacks . | . . . . Repair Station Hacks . | . . . . Recycling Unit Hacks . | . . . . Scanalyzer . | . . . . Garrison Access Hacks . | . . . . Unauthorized Hacks . | . . . . Terminals . | . . . . Fabricators . | . . . . Repair Stations . | . . . . Recycling Units . | . . . . Scanalyzers . | . . . . Garrison Access . | . . . . Data Cores Recovered 1 | . . 1 . Used . | . . . . Hacking Detections 5 | . 2 3 . Full Trace Events 3 | . 2 1 . Feedback Events 1 | . . 1 . Corruption 1 | . . 1 . Feedback Blocked . | . . . . Robot Schematics Acquired . | . . . . Robots Built . | . . . . Authchips . | . . . . Time . | . . . . Total Robot Build Rating . | . . . . Part Schematics Acquired . | . . . . Parts Built . | . . . . Authchips . | . . . . Time . | . . . . Total Part Build Rating . | . . . . Part Studies Acquired . | . . . . Parts Repaired . | . . . . Time . | . . . . Parts Recycled . | . . . . Recycled Matter . | . . . . Retrieved Matter . | . . . . Retrieved Components . | . . . . Parts Scanalyzed . | . . . . Part Schematics Acquired . | . . . . Parts Damaged . | . . . . Bothacking | -11 -10 -9 -9 ------------ Run | Yrd Mat Mat Min Used RIF Installer . | . . . . Robots Hacked . | . . . . Non-combat . | . . . . Combat . | . . . . Robot Hacks Applied . | . . . . Relay Couplers Released . | . . . . Fabnet Peak Effective % . | . . . . Robots Rewired . | . . . . Allies Hacked . | . . . . Hacks Repelled . | . . . . Allies | -11 -10 -9 -9 -------- Run | Yrd Mat Mat Min Total Allies . | . . . . Largest Group . | . . . . Highest-Rated Group . | . . . . Highest-Rated Ally . | . . . . Total Orders . | . . . . Ally Attacks . | . . . . Total Damage . | . . . . Kills . | . . . . Allies Corrupted . | . . . . Allies Melted . | . . . . Intel | -11 -10 -9 -9 ------- Run | Yrd Mat Mat Min Active Infowar (turns) . | . . . . Robot Analysis Total 4 | . 3 1 . Derelict Logs Recovered . | . . . . Drone Launches . | . . . . Drone Recoveries . | . . . . Exploration | -11 -10 -9 -9 ------------- Run | Yrd Mat Mat Min Turns Passed 2921 | 202 1743 708 268 Spaces Moved 1045 | 94 531 298 122 Core 4 | 4 . . . Treads 1041 | 90 531 298 122 Legs . | . . . . Wheels . | . . . . Hover . | . . . . Flight . | . . . . Fastest Speed 50 | 50 160 160 170 Average Speed 230 | 155 292 168 170 Slowest Speed 320 | 160 320 320 170 Overloaded Moves . | . . . . Propulsion Burnouts . | . . . . Robots Hopped . | . . . . Potential Cave-ins . | . . . . Cave-ins Triggered . | . . . . Exploration Rate (%) 38 | 5 76 38 36 Regions Visited 3 Branch Regions 1 Pre-discovered Areas . | . . . . Known Exits Taken 2 | . 1 1 . Unknown Exits Taken 1 | 1 . . . Scrap Searched 1 | . . . 1 Spaces Dug . | . . . . Terrain Destroyed 33 | . . . 33 Melee . | . . . . Projectile . | . . . . AOE 33 | . . . 33 Terrain Rammed . | . . . . Walls Destroyed . | . . . . Machines Disabled . | . . . . Actions | -11 -10 -9 -9 --------- Run | Yrd Mat Mat Min Total 1318 | 119 620 423 156 Wait 95 | . 19 57 19 Move 1043 | 94 530 297 122 Hop . | . . . . Pick Up 15 | 2 10 3 . Fast Attach 12 | 6 2 4 . Attach 2 | . 1 . 1 Detach 1 | . . 1 . Swap 13 | . 4 9 . Drop 10 | . 2 8 . Fire 115 | 17 45 40 13 Melee . | . . . . Ram . | . . . . Kick . | . . . . Crush 12 | . 7 4 1 Escape Stasis . | . . . . Rewire . | . . . . Trap . | . . . . Miscellaneous . | . . . . Route ------- -11/Scrapyard -10/Materials (discovered 4 exits: *Mat x3 / *Min) -9/Materials (discovered 4 exits: *Mat / *Min x2 / *Sto) -9/Mines History --------- Turn | Location | Event 8 | -11/Scrapyard | Discovered new exit (range 14) 203 | -11/Scrapyard | Entered Materials 320 | -10/Materials | Build established: Mutant 694 | -10/Materials | Discovered new exit (range 8) 963 | -10/Materials | Discovered new exit (range 9) 1105 | -10/Materials | Identified exit to Mines 1381 | -10/Materials | Discovered new exit (range 7) 1400 | -10/Materials | Identified exit to Materials 1911 | -10/Materials | Discovered exit to Materials (range 6) 1946 | -10/Materials | Entered another Materials area 1946 | -9/Materials | Evolved 2 slots: Propulsion x1, Utility x1 2092 | -9/Materials | Discovered new exit (range 15) 2135 | -9/Materials | Identified exit to Storage 2405 | -9/Materials | Build established: Scavenger-Mutant 2414 | -9/Materials | Discovered new exit (range 13) 2435 | -9/Materials | Identified exit to Materials 2582 | -9/Materials | Identified exit to Mines 2654 | -9/Materials | Entered Mines 2807 | -9/Mines | Build established: Mutant 2904 | -9/Mines | Assembled infested the area 2922 | -9/Mines | Self-destructed Last Messages --------------- 02777_ S-10 Pest destroyed. 02782_ System corrupted: Substantial component data lost. 02823_ Destroyed Flight Unit. 02832_ Lgt. Ion Engine melted. 02832_ S-10 Pest destroyed. 02838_ Overheating: Energy bleed (-30). 02844_ Heat Sink destroyed. 02846_ S-10 Pest destroyed. 02846_ Plasma Injector explodes. 02867_ K-01 Serf collects debris. 02898_ Slammed into R-06 Scavenger. 02904_ ALERT: Infestation in the mines, dispatching Demolisher response squad. 02911_ as-79115 sneak attacks. 02911_ U-05 Engineer destroyed. 02913_ as-71160 destroyed. 02918_ Ion Engine destroyed. 02918_ Particle Cannon destroyed. 02918_ System corrupted by crushing effect (+3). 02918_ System corrupted by crushing effect (+4). Map ----- +----------------------------------------------------+ | ??#" " =%=#???????## #??????????????## | | ??# ## #??????## #??????????????# | | ??# "" ## #?????## ##?????????????## | | ??#" "" ## #????## ##?????????????# | | ???" """ ## #????# ##????????????? | | ???" ## #????# #########????? | | ???# [ ## #????## # ## ^ #????? | | ???##" ####### #?????## ## ##^## # #????? | | ?????#[#??????# #??????# ## ## ^# #????? | | ?????#%######## ######## ## # # #^ #????? | | ?????#= =% ### # ###### | | ?????##### ############# #?## ^ | | ????###?## ##??????????# ##### ########## | | ???## ## ##?####???## #### #????????? | | ???# ### ##?# #?# #????????? | | ???# ## #?# #????????? | | ???# #? ##????????? | | ???## ## #?????????? | | ????### ### #?????????? | | ??????## ##?# ?????????? | | ??????## % ##??# ?????????? | | ?????## #### #???# ?????????? | | ?????# ##??## ##??? ?????????? | | ?????# #????## ####???? ??????????? | | ?????# #?????## ##??????? ??????????? | | ?????## #??????#@ #???????? ??????????? | | ??????## ##??????#aa#????????? ???????????? | | ???????####???????# #?????????????????????? | | ?????????????????? #?????????????????????? | | ?????????????????? = #?????????????????????? | | ????????????????? *%! ?????????????????????? | | ????????????????? %! ?????????????????????? | | ???????????????? ##????????????????????? | | ???????????????? ##?????????????????????? | | ??????????????? #??????????????????????? | | ??????????????? ???????????????????????? | | ?????????????? ???????????????????????? | | ?????????????? ???????????????????????? | | ????????????? ???????????????????????? | | ????????????? ### ???????????????????????? | | ????????????????## ???????????????????????? | | ??????????????????# ???????????????????????? | | ???????????????????????????????????????????? | | ???????????????????????????????????????????? | | ???????????????????????????????????????????? | | ???????????????????????????????????????????? | | ???????????????????????????????????????????? | | ???????????????????????????????????????????? | | ???????????????????????????????????????????? | | ???????????????????????????????????????????? | +----------------------------------------------------+ Best States ------------- Heat Dissipation 38 Energy Generation 10 Energy Capacity 250 Matter Stores 300 Matter Capacity 300 Sight Range 16 Terrain Scan Density 10 Evasion (%) 40 Recoil Reduction 3 Item Schematics ----------------- None Robot Schematics ------------------ None Fabricated ------------ Nothing Repaired ---------- Nothing Studied --------- None Alien Tech Used ----------------- None Achievements -------------- None Challenges ------------ None Game ------ Seed BombWeaponWand Manual? 0 Play Time 00:16:31 Cumulative 39.4 hours Start 2025.11.09 @ 21:35:54 End 2025.11.10 @ 12:53:58 Sessions 3 Manual Loads 0 Difficulty Rogue Special Mode None Game No. 58 Rogue 58 Adventurer 0 Explorer 0 Win Type - Total 0 Types 0/0/0/0/0/0/0/0/0/0 Lore% 9 Gallery% 20 Achievement% 16 Wizard Run 0 Options --------- Layout 0 ASCII 0 Keyboard 0 Movement Numpad Keybinds 0 Fullscreen 2 Font 24/Smallcaps Map View 76x50 Zoom Use 6% Tactical HUD 1 Map Filters NONE Filters NONE Steam 1 RUN: deee10cf-1369-47ae-82dd-8328a51ba784